fUST/lending_fUST_20251114
["ID","MTS","AMOUNT","RATE_DAILY","PERIOD"]
[393936307,1763110890239,-500.0,0.0002576,2]
[393936308,1763110890270,-500.0,0.0002576,2]
[393936309,1763110890303,-8542.74780045,0.0002576,2]
[393936310,1763110890338,-500.0,0.0002576,2]
[393936311,1763110890371,-8542.74780046,0.0002576,2]
[393936312,1763110890399,-500.0,0.0002576,2]
[393936313,1763110890424,-500.0,0.0002576,2]
[393936314,1763110890454,-2215.25239275,0.0002576,2]
[393936315,1763110890580,-6327.4954077,0.0002576,2]
[393936316,1763110890608,-500.0,0.0002576,2]
[393936317,1763110890635,-500.0,0.0002576,2]
[393936318,1763110890664,-8542.74780045,0.0002576,2]
[393936319,1763110890693,-8542.74780045,0.0002576,2]
[393936320,1763110890720,-500.0,0.0002576,2]
[393936321,1763110890748,-87.0089914,0.0002576,2]
[393936322,1763110891524,-500.0,0.0002576,2]
[393936323,1763110891555,-412.9910086,0.0002576,2]
[393936324,1763110891591,-8542.74780045,0.0002576,2]
[393936325,1763110891624,-8542.74780045,0.0002576,2]
[393936326,1763110891658,-500.0,0.0002576,2]
[393936327,1763110891688,-500.0,0.0002576,2]
[393936328,1763110891718,-500.0,0.0002576,2]
[393936329,1763110891751,-5501.5133905,0.0002576,2]
[393936330,1763110892622,-3041.23440995,0.0002576,2]
[393936331,1763110892651,-8542.74780045,0.0002576,2]
[393936332,1763110892677,-500.0,0.0002576,2]
[393936333,1763110892703,-500.0,0.0002576,2]
[393936334,1763110892730,-8542.74780045,0.0002576,2]
[393936335,1763110892758,-3873.26998915,0.0002576,2]
[393936336,1763110894456,-4669.4778113,0.0002576,2]
[393936337,1763110894482,-500.0,0.0002576,2]
[393936338,1763110894510,-8542.74780045,0.0002576,2]
[393936339,1763110894536,-500.0,0.0002576,2]
[393936340,1763110894560,-500.0,0.0002576,2]
[393936341,1763110894588,-500.0,0.0002576,2]
[393936342,1763110894613,-500.0,0.0002576,2]
[393936343,1763110894641,-8542.74780048,0.0002576,2]
[393936344,1763110894756,-500.0,0.0002576,2]
[393936345,1763110894787,-245.02658777,0.0002576,2]
[393936346,1763110895325,-8297.72121271,0.0002576,2]
[393936347,1763110895355,-500.0,0.0002576,2]
[393936348,1763110895384,-8542.74780048,0.0002576,2]
[393936349,1763110895411,-500.0,0.0002576,2]
[393936350,1763110895439,-7159.53098681,0.0002576,2]
[393936351,1763110895471,-1383.21681367,0.0002576,2]
[393936352,1763110895497,-650.0,0.0002576,2]
[393936353,1763110895525,-8542.74780048,0.0002576,2]
[393936354,1763110895553,-8542.74780048,0.0002576,2]
[393936355,1763110895577,-5881.28758537,0.00025761,2]
[393936356,1763110898264,-151.0,0.0002576,7]
[393936357,1763110898289,-24849.0,0.00025761,2]
[393936358,1763110899922,-87.47081381,0.00025761,2]
[393936359,1763110899954,-248.97,0.00025762,3]
[393936360,1763110899981,-746.91,0.00025762,3]
[393936361,1763110900007,-245.79,0.00025763,10]
[393936362,1763110900032,-23670.85918619,0.00025765,2]
[393936364,1763110923552,5000.0,0.00025206,2]
[393936365,1763110931012,2177.95424684,0.00022279,2]
[393936366,1763110931514,2177.95424684,0.00022592,2]
[393936367,1763110931824,2177.95424684,0.00022904,2]
[393936368,1763110931992,3532.28943578,0.00024851,2]
[393936369,1763110932182,2177.95424684,0.00023034,2]
[393936370,1763110932324,3532.28943578,0.00025194,2]
[393936371,1763110932481,2177.95424684,0.00023306,2]
[393936372,1763110932781,2177.95424684,0.00023785,2]
[393936373,1763110933083,2177.95424684,0.00024101,2]
[393936374,1763110933380,2177.95424684,0.00024222,2]
[393936375,1763110933730,2177.95424684,0.00024494,2]
[393936376,1763110933873,-1064.8282286,0.00025317,2]
[393936377,1763110934043,2177.95424684,0.00024734,2]
[393936378,1763110934351,2177.95424684,0.00024958,2]
[393936379,1763110936537,-300.0,0.00025317,2]
[393936380,1763110939885,-258.45115553,0.00025317,2]
[393936381,1763110942471,-200.12729724,0.00025317,2]
[393936382,1763110945277,-247.61772679,0.00025317,2]
[393936383,1763110946399,5000.0,0.00025206,2]
[393936384,1763110946880,-272.51982629,0.00025317,2]
[393936385,1763110951391,-350.0,0.00025317,2]
[393936386,1763110954078,-838.74520133,0.00025317,2]
[393936387,1763110954099,-1069.18264295,0.00025345,2]
[393936388,1763110955791,-333.6,0.00025345,2]
[393936389,1763110957704,-516.33190715,0.00025345,2]
[393936390,1763110962988,-241.87,0.00025345,2]
[393936391,1763110969742,5000.0,0.00025206,2]
[393936394,1763110992678,5000.0,0.00025206,2]
[393936395,1763111015684,5000.0,0.00025206,2]
[393936397,1763111021942,-300.0,0.000253,20]
[393936399,1763111034372,-300.0,0.000253,20]
[393936400,1763111038174,5000.0,0.00025206,2]
[393936401,1763111046058,211.8093033,0.00024584,2]
[393936402,1763111046842,-300.0,0.000253,20]
[393936406,1763111061002,5000.0,0.00025206,2]
[393936409,1763111061720,-300.0,0.000253,20]
[393936412,1763111083344,3517.13808245,0.00025206,2]
[393936413,1763111090350,2868.42216175,0.000252,2]
[393936414,1763111108691,151.0,0.00039796,30]
[393936415,1763111109318,156.587,0.00039796,120]
[393936416,1763111110000,162.380719,0.00039796,30]
[393936417,1763111110634,168.3888056,0.00039796,120]
[393936418,1763111111325,174.61919141,0.00039796,120]
[393936419,1763111112004,181.08010149,0.00039796,30]
[393936420,1763111112655,187.78006525,0.00039796,120]
[393936421,1763111113308,194.72792766,0.00039796,30]
[393936422,1763111113951,201.93286099,0.00039796,120]
[393936423,1763111114705,209.40437684,0.00039796,20]
[393936424,1763111115256,209.40437684,0.00039796,20]
[393936425,1763111124923,-150.0,0.00025252,2]
[393936428,1763111237612,179.4433,0.00039796,120]
[393936429,1763111279594,173.81,0.00018531,2]
[393936441,1763111350646,418.66929077,0.00025206,2]
[393936445,1763111365884,5000.0,0.00025206,2]
[393936447,1763111379276,300.0,0.00025206,2]
[393936448,1763111388586,5000.0,0.00025206,2]
[393936452,1763111411621,1612.72533455,0.00025206,2]
[393936453,1763111412230,3278.97370169,0.00025199,2]
[393936468,1763111432753,-150.0,0.00025252,2]
[393936469,1763111432765,-1200.0,0.00025299,2]
[393936470,1763111432774,-266.14,0.000253,20]
[393936471,1763111432783,-300.0,0.000253,7]
[393936472,1763111432791,-300.0,0.000253,7]
[393936473,1763111432801,-300.0,0.000253,7]
[393936474,1763111432810,-300.0,0.000253,7]
[393936475,1763111432819,-266.14,0.000253,7]
[393936476,1763111432828,-300.0,0.000253,2]
[393936477,1763111432838,-1311.0,0.000253,2]
[393936478,1763111432847,-206.38678929,0.00025389,2]
[393936479,1763111432856,-3532.2894358,0.00025508,2]
[393936480,1763111432865,-160.0,0.00025527,2]
[393936481,1763111432874,-300.0,0.00025553,2]
[393936482,1763111432884,-300.0,0.00025553,2]
[393936483,1763111432894,-300.0,0.00025553,2]
[393936484,1763111432909,-300.0,0.00025553,2]
[393936485,1763111432922,-50000.0,0.00025554,2]
[393936486,1763111432931,-1200.0,0.00025554,2]
[393936487,1763111432942,-500.0,0.00025573,2]
[393936488,1763111432952,-500.0,0.00025573,2]
[393936489,1763111432961,-500.0,0.00025573,2]
[393936490,1763111432970,-501.1527927,0.00025573,2]
[393936491,1763111433111,-585.09824827,0.00025573,2]
[393936492,1763111433121,-525.43597549,0.00025573,2]
[393936493,1763111433130,-503.94670184,0.00025573,2]
[393936494,1763111433140,-500.0,0.00025573,2]
[393936495,1763111433149,-500.0,0.00025573,2]
[393936496,1763111433158,-500.0,0.00025573,2]
[393936497,1763111433167,-500.0,0.00025573,2]
[393936498,1763111433176,-504.09306033,0.00025573,2]
[393936499,1763111433185,-500.0,0.00025573,2]
[393936500,1763111433194,-500.0,0.00025573,2]
[393936501,1763111433204,-497.94,0.00025634,3]
[393936502,1763111433213,-655.58,0.00025634,10]
[393936503,1763111433222,-500.0,0.00025643,2]
[393936504,1763111433231,-555.22921487,0.00025643,2]
[393936505,1763111433240,-376.37400098,0.00025643,2]
[393936506,1763111433249,-6326.89285233,0.00025643,2]
[393936507,1763111433258,-174875.353338,0.00025645,2]
[393936508,1763111433268,-151.0,0.00025645,7]
[393936509,1763111433277,-151.0,0.00025645,7]
[393936510,1763111433286,-151.0,0.00025645,7]
[393936511,1763111433295,-151.0,0.00025645,7]
[393936512,1763111433304,-43718.8383346,0.00025646,2]
[393936513,1763111433313,-43718.8383346,0.0002565,2]
[393936514,1763111433322,-312.22971676,0.0002565,2]
[393936515,1763111433331,-405.59,0.00025654,2]
[393936516,1763111433340,-500.0,0.00025655,2]
[393936517,1763111433349,-492.9539785,0.00025656,2]
[393936518,1763111433358,-477.53340288,0.00025673,2]
[393936519,1763111433367,-500.0,0.00025673,2]
[393936520,1763111433376,-500.0,0.00025673,2]
[393936521,1763111433385,-500.0,0.00025673,2]
[393936522,1763111433394,-500.0,0.00025673,2]
[393936523,1763111433403,-500.0,0.00025673,2]
[393936524,1763111433412,-500.0,0.00025673,2]
[393936525,1763111433421,-500.0,0.00025673,2]
[393936526,1763111433430,-500.50435248,0.00025673,2]
[393936527,1763111433440,-500.0,0.00025673,2]
[393936528,1763111433449,-290.988142,0.00025688,7]
[393936529,1763111433458,-329.0,0.0002571,2]
[393936530,1763111433468,-151.0,0.00025716,7]
[393936531,1763111433477,-168.444967,0.00025716,7]
[393936532,1763111433497,-151.0,0.00025716,7]
[393936533,1763111433517,-909.07415127,0.00025728,2]
[393936534,1763111433527,-151.0,0.00025733,2]
[393936535,1763111433536,-155.69944327,0.00025733,2]
[393936536,1763111433545,-43718.8383346,0.00025734,2]
[393936537,1763111433555,-702.2234557,0.00025741,2]
[393936538,1763111433564,-151.0,0.00025755,7]
[393936539,1763111433572,-151.0,0.00025755,7]
[393936540,1763111433582,-151.0,0.00025755,7]
[393936541,1763111433591,-172.202905,0.00025755,7]
[393936542,1763111433600,-151.0,0.00025755,7]
[393936543,1763111433610,-160.643,0.00025756,11]
[393936544,1763111433619,-500.0,0.00025756,2]
[393936545,1763111433628,-160.35992491,0.00025756,2]
[393936546,1763111433637,-177.68397295,0.00025756,2]
[393936547,1763111433646,-151.0,0.0002576,7]
[393936548,1763111433656,-500.0,0.00025764,2]
[393936549,1763111433666,-1187.84,0.00025764,2]
[393936550,1763111433675,-1187.84,0.00025767,2]
[393936551,1763111433684,-1187.84,0.00025771,2]
[393936552,1763111433693,-1187.84,0.00025771,2]
[393936553,1763111433703,-13756.48320227,0.00025772,2]
[393936554,1763111433712,-500.0,0.00025773,2]
[393936555,1763111433721,-500.0,0.00025773,2]
[393936556,1763111433730,-501.33763456,0.00025773,2]
[393936557,1763111433739,-500.0,0.00025773,2]
[393936558,1763111433748,-500.0,0.00025773,2]
[393936559,1763111433757,-215.36633778,0.00025773,2]
[393936560,1763111433767,-500.0,0.00025773,2]
[393936561,1763111433779,-500.0,0.00025773,2]
[393936562,1763111433789,-500.0,0.00025773,2]
[393936563,1763111433798,-500.0,0.00025773,2]
[393936564,1763111433807,-500.0,0.00025773,2]
[393936565,1763111433816,-500.0,0.00025773,2]
[393936566,1763111433825,-524.70181633,0.00025773,2]
[393936567,1763111433833,-500.0,0.00025773,2]
[393936568,1763111433843,-500.0,0.00025773,2]
[393936569,1763111433851,-500.0,0.00025773,2]
[393936570,1763111433861,-500.0,0.00025773,2]
[393936571,1763111433871,-578.51414406,0.00025777,2]
[393936572,1763111433880,-300.0,0.000258,2]
[393936573,1763111433889,-300.0,0.000258,2]
[393936574,1763111433899,-241.27,0.000258,2]
[393936575,1763111433908,-151.0,0.000258,12]
[393936576,1763111433918,-151.0,0.000258,14]
[393936577,1763111433927,-151.0,0.000258,10]
[393936578,1763111433936,-151.0,0.000258,18]
[393936579,1763111433946,-151.0,0.00025856,7]
[393936580,1763111433955,-151.0,0.00025858,7]
[393936581,1763111433964,-153.265094,0.00025858,7]
[393936582,1763111433973,-151.0,0.00025858,7]
[393936583,1763111433982,-151.0,0.00025858,7]
[393936584,1763111433992,-151.0,0.00025858,7]
[393936585,1763111434001,-500.0,0.00025858,2]
[393936586,1763111434010,-500.0,0.00025858,2]
[393936587,1763111434022,-500.0,0.00025858,2]
[393936588,1763111434031,-500.0,0.00025858,2]
[393936589,1763111434040,-500.0,0.00025858,2]
[393936590,1763111434050,-500.0,0.00025858,2]
[393936591,1763111434059,-500.0,0.00025858,2]
[393936592,1763111434069,-500.0,0.00025858,2]
[393936593,1763111434078,-500.0,0.00025858,2]
[393936594,1763111434088,-500.0,0.00025858,2]
[393936595,1763111434097,-500.0,0.00025858,2]
[393936596,1763111434106,-500.0,0.00025858,2]
[393936597,1763111434115,-500.0,0.00025858,2]
[393936598,1763111434125,-500.0,0.00025858,2]
[393936599,1763111434134,-500.0,0.00025858,2]
[393936600,1763111434144,-218.5162716,0.00025858,2]
[393936601,1763111434154,-1000.0,0.00025858,2]
[393936602,1763111434163,-460.05,0.00025858,2]
[393936603,1763111434173,-151.0,0.00025858,7]
[393936604,1763111434183,-1187.84,0.00025858,2]
[393936605,1763111434192,-1187.84,0.00025858,2]
[393936606,1763111434202,-1187.84,0.00025858,2]
[393936607,1763111434212,-1187.84,0.00025858,2]
[393936608,1763111434222,-1187.84,0.00025858,2]
[393936609,1763111434233,-1187.84,0.00025858,2]
[393936610,1763111434242,-1187.84,0.00025858,2]
[393936611,1763111434252,-1187.84,0.00025858,2]
[393936612,1763111434263,-1187.84,0.00025858,2]
[393936613,1763111434275,-1187.84,0.00025858,2]
[393936614,1763111434283,-1187.84,0.00025858,2]
[393936615,1763111434293,-1187.84,0.00025858,2]
[393936616,1763111434302,-1187.84,0.00025858,2]
[393936617,1763111434312,-1187.84,0.00025858,2]
[393936618,1763111434321,-561.51192704,0.00025866,2]
[393936619,1763111434331,-1187.84,0.00025867,2]
[393936620,1763111434341,-1187.84,0.00025867,2]
[393936621,1763111434351,-1187.84,0.00025867,2]
[393936622,1763111434360,-1187.84,0.00025867,2]
[393936623,1763111434370,-1187.84,0.00025867,2]
[393936624,1763111434378,-1188.04742051,0.00025867,2]
[393936625,1763111434388,-151.0,0.00025868,7]
[393936626,1763111434397,-151.0,0.00025868,7]
[393936627,1763111434406,-151.0,0.00025868,7]
[393936628,1763111434417,-244.191285,0.00025868,7]
[393936629,1763111434426,-244.191285,0.00025868,7]
[393936630,1763111434435,-244.191285,0.00025868,7]
[393936631,1763111434445,-244.191285,0.00025868,7]
[393936632,1763111434455,-263.898658,0.00025868,7]
[393936633,1763111434464,-151.0,0.00025868,7]
[393936634,1763111434474,-72186.99964197,0.00025868,2]
[393936680,1763111438316,-500.0,0.00025553,2]
[393936681,1763111438326,-500.0,0.00025553,2]
[393936682,1763111438336,-750.88457072,0.00025553,2]
[393936684,1763111438345,-500.0,0.00025553,2]
[393936685,1763111438355,-500.0,0.00025553,2]
[393936686,1763111438364,-500.0,0.00025553,2]
[393936688,1763111438374,-750.88457072,0.00025553,2]
[393936689,1763111438383,-500.0,0.00025553,2]
[393936690,1763111438392,-500.0,0.00025553,2]
[393936691,1763111438401,-500.0,0.00025553,2]
[393936693,1763111438411,-500.0,0.00025553,2]
[393936694,1763111438421,-750.88457072,0.00025553,2]
[393936695,1763111438430,-500.0,0.00025553,2]
[393936697,1763111438439,-500.0,0.00025553,2]
[393936698,1763111438448,-500.0,0.00025553,2]
[393936699,1763111438457,-750.88457072,0.00025553,2]
[393936700,1763111438466,-500.0,0.00025553,2]
[393936701,1763111438476,-500.0,0.00025553,2]
[393936703,1763111438487,-500.0,0.00025553,2]
[393936704,1763111438497,-500.0,0.00025553,2]
[393936705,1763111438506,-500.0,0.00025553,2]
[393936706,1763111438515,-750.88457072,0.00025553,2]
[393936708,1763111438527,-247.65455686,0.00025553,2]
[393936709,1763111438536,-500.0,0.00025553,2]
[393936710,1763111438545,-500.0,0.00025553,2]
[393936711,1763111438554,-500.0,0.00025553,2]
[393936713,1763111438565,-500.0,0.00025553,2]
[393936714,1763111438575,-750.88457072,0.00025553,2]
[393936715,1763111438584,-500.0,0.00025553,2]
[393936716,1763111438593,-500.0,0.00025553,2]
[393936718,1763111438603,-750.88457072,0.00025553,2]
[393936719,1763111438612,-500.0,0.00025553,2]
[393936720,1763111438621,-500.0,0.00025553,2]
[393936722,1763111438630,-188.33359277,0.00025553,2]
[393936723,1763111438640,-500.0,0.00025553,2]
[393936724,1763111438649,-500.0,0.00025553,2]
[393936725,1763111438659,-750.88457072,0.00025553,2]
[393936727,1763111438668,-500.0,0.00025553,2]
[393936728,1763111438677,-500.0,0.00025553,2]
[393936729,1763111438687,-604.86363883,0.00025553,2]
[393936730,1763111438696,-500.0,0.00025553,2]
[393936732,1763111438706,-750.88457072,0.00025553,2]
[393936733,1763111438715,-500.0,0.00025553,2]
[393936734,1763111438725,-750.88457072,0.00025553,2]
[393936736,1763111438734,-500.0,0.00025553,2]
[393936737,1763111438744,-500.0,0.00025553,2]
[393936738,1763111438754,-500.0,0.00025553,2]
[393936739,1763111438764,-500.0,0.00025553,2]
[393936740,1763111438773,-750.88457072,0.00025553,2]
[393936742,1763111438783,-500.0,0.00025553,2]
[393936743,1763111438792,-500.0,0.00025553,2]
[393936744,1763111438803,-750.88457072,0.00025553,2]
[393936745,1763111438812,-500.0,0.00025553,2]
[393936747,1763111438822,-500.0,0.00025553,2]
[393936748,1763111438831,-500.0,0.00025553,2]
[393936749,1763111438840,-750.88457072,0.00025553,2]
[393936750,1763111438851,-500.0,0.00025553,2]
[393936752,1763111438860,-500.0,0.00025553,2]
[393936754,1763111438869,-500.0,0.00025553,2]
[393936756,1763111438879,-500.0,0.00025553,2]
[393936757,1763111438889,-750.88457072,0.00025553,2]
[393936760,1763111438898,-500.0,0.00025553,2]
[393936762,1763111438908,-750.88457072,0.00025553,2]
[393936764,1763111438918,-500.0,0.00025553,2]
[393936765,1763111438928,-500.0,0.00025553,2]
[393936767,1763111438937,-500.0,0.00025553,2]
[393936769,1763111438946,-750.88457072,0.00025553,2]
[393936771,1763111438956,-500.0,0.00025553,2]
[393936773,1763111438965,-500.0,0.00025553,2]
[393936775,1763111438974,-750.88457072,0.00025553,2]
[393936777,1763111438984,-500.0,0.00025553,2]
[393936779,1763111438994,-750.88457072,0.00025553,2]
[393936781,1763111439003,-500.0,0.00025553,2]
[393936783,1763111439013,-500.0,0.00025553,2]
[393936784,1763111439024,-750.88457072,0.00025553,2]
[393936786,1763111439034,-500.0,0.00025553,2]
[393936788,1763111439044,-500.0,0.00025553,2]
[393936789,1763111439053,-750.88457072,0.00025553,2]
[393936791,1763111439063,-500.0,0.00025553,2]
[393936792,1763111439072,-750.88457072,0.00025553,2]
[393936794,1763111439082,-500.0,0.00025553,2]
[393936796,1763111439091,-750.88457072,0.00025553,2]
[393936798,1763111439101,-500.0,0.00025553,2]
[393936800,1763111439112,-750.88457072,0.00025553,2]
[393936801,1763111439122,-750.88457072,0.00025553,2]
[393936802,1763111439132,-500.0,0.00025553,2]
[393936804,1763111439142,-750.88457072,0.00025553,2]
[393936805,1763111439151,-500.0,0.00025553,2]
[393936806,1763111439161,-750.88457072,0.00025553,2]
[393936807,1763111439171,-750.88457072,0.00025553,2]
[393936809,1763111439180,-500.0,0.00025553,2]
[393936810,1763111439190,-750.88457072,0.00025553,2]
[393936812,1763111439199,-500.0,0.00025553,2]
[393936813,1763111439209,-750.88457072,0.00025553,2]
[393936814,1763111439218,-500.0,0.00025553,2]
[393936815,1763111439228,-750.88457072,0.00025553,2]
[393936817,1763111439238,-500.0,0.00025553,2]
[393936818,1763111439247,-750.88457072,0.00025553,2]
[393936819,1763111439256,-500.0,0.00025553,2]
[393936820,1763111439266,-750.88457072,0.00025553,2]
[393936821,1763111439276,-500.0,0.00025553,2]
[393936823,1763111439285,-500.0,0.00025553,2]
[393936824,1763111439295,-750.88457072,0.00025553,2]
[393936825,1763111439305,-500.0,0.00025553,2]
[393936826,1763111439315,-750.88457072,0.00025553,2]
[393936828,1763111439324,-500.0,0.00025553,2]
[393936829,1763111439337,-750.88457072,0.00025553,2]
[393936830,1763111439350,-750.88457072,0.00025553,2]
[393936832,1763111439362,-500.0,0.00025553,2]
[393936833,1763111439374,-750.88457072,0.00025553,2]
[393936834,1763111439389,-500.0,0.00025553,2]
[393936836,1763111439400,-303.92546163,0.00025553,2]
[393936837,1763111439410,-750.88457072,0.00025553,2]
[393936838,1763111439421,-500.0,0.00025553,2]
[393936839,1763111439433,-750.88457072,0.00025553,2]
[393936841,1763111439444,-500.0,0.00025553,2]
[393936842,1763111439456,-750.88457072,0.00025553,2]
[393936843,1763111439466,-750.88457072,0.00025553,2]
[393936844,1763111439478,-500.0,0.00025553,2]
[393936845,1763111439490,-500.0,0.00025553,2]
[393936847,1763111439504,-750.88457072,0.00025553,2]
[393936848,1763111439515,-500.0,0.00025553,2]
[393936849,1763111439526,-750.88457072,0.00025553,2]
[393936850,1763111439539,-750.88457072,0.00025553,2]
[393936852,1763111439551,-750.88457072,0.00025553,2]
[393936853,1763111439561,-750.88457072,0.00025553,2]
[393936854,1763111439575,-750.88457072,0.00025553,2]
[393936855,1763111439586,-750.88457072,0.00025553,2]
[393936857,1763111439598,-750.88457072,0.00025553,2]
[393936858,1763111439608,-27334.83952936,0.00025868,2]
[393936861,1763111440958,-85.65299367,0.00025553,2]
[393936873,1763111447736,-414.34700633,0.00025553,2]
[393936874,1763111447745,-11005.18656184,0.00025773,2]
[393936875,1763111447754,-500.0,0.00025827,2]
[393936876,1763111447763,-616.3,0.00025858,10]
[393936877,1763111447772,-100771.62417696,0.00025868,2]
[393936878,1763111447853,206.38678929,0.000252,2]
[393936884,1763111474766,699.93,0.00023974,30]
[393936886,1763111480382,170.88544949,0.00039778,120]
[393936992,1763111589612,193.6859413,0.00024748,2]
[393936993,1763111658456,520.885484,0.00013699,2]
[393936994,1763111658868,520.885484,0.00020187,2]
[393936996,1763111667303,300.0,0.000247,20]
[393936997,1763111677498,300.0,0.000247,20]
[393936998,1763111687343,300.0,0.000247,20]
[393936999,1763111696863,300.0,0.000247,20]
[393937000,1763111700296,487.69093618,0.00025205,2]
[393937003,1763111706567,300.0,0.000247,20]
[393937004,1763111711502,161.93,0.00023493,30]
[393937005,1763111711646,28170.3590376,0.00024526,2]
[393937006,1763111716685,298.18,0.000247,20]
[393937007,1763111721335,300.0,0.000247,7]
[393937008,1763111721814,300.0,0.000247,20]
[393937009,1763111730744,300.0,0.000247,7]
[393937010,1763111730835,999999.00000018,0.00039755,20]
[393937011,1763111731546,300.0,0.000247,20]
[393937012,1763111741192,300.0,0.000247,7]
[393937013,1763111741819,300.0,0.000247,20]
[393937014,1763111751224,300.0,0.000247,7]
[393937015,1763111751676,268.82,0.000247,20]
[393937016,1763111756376,300.0,0.000247,7]
[393937017,1763111761608,300.0,0.000247,7]
[393937018,1763111765953,300.0,0.000247,7]
[393937019,1763111777493,700.0,0.00025206,2]
[393937021,1763111811905,499.607396,0.00039755,120]
[393937022,1763111842927,904.1588762,0.00024451,2]
[393937023,1763111863184,310.5322015,0.00030137,120]
[393937024,1763111894839,265.72523506,0.00024558,2]
[393937025,1763111897146,478.30542311,0.00024558,2]
[393937026,1763111899289,850.32075219,0.00024558,2]
[393937027,1763111921812,165.30104087,0.00024503,3]
[393937030,1763112009465,-435.00974632,0.00025252,2]
[393937031,1763112015193,-300.0,0.00025252,2]
[393937033,1763112017793,-300.0,0.00025252,2]
[393937034,1763112020837,-271.99025368,0.00025252,2]
[393937035,1763112020861,-150.0,0.00025252,2]
[393937037,1763112056947,34339.252169,0.00024439,2]
[393937039,1763112084904,-150.0,0.00025252,2]
[393937040,1763112084958,140.92041695,0.00024422,2]
[393937041,1763112084981,6505.95315545,0.00024422,2]
[393937042,1763112099596,424.97970019,0.00024558,2]
[393937044,1763112138439,174588.27126419,0.00039778,20]
[393937049,1763112196732,150.05660333,0.00024333,2]
[393937050,1763112199094,599.6261869,0.00024333,2]
[393937052,1763112253596,5000.0,0.00025206,2]
[393937053,1763112259982,12598.3815696,0.00024363,2]
[393937054,1763112261485,5000.0,0.00025206,2]
[393937055,1763112269546,5000.0,0.00025206,2]
[393937056,1763112277423,5000.0,0.00025206,2]
[393937077,1763112285656,5000.0,0.00025206,2]
[393937078,1763112293693,5000.0,0.00025206,2]
[393937079,1763112309422,5000.0,0.00025206,2]
[393937080,1763112317503,5000.0,0.00025206,2]
[393937081,1763112321368,5913.0,0.00025,2]
[393937082,1763112326593,5000.0,0.00025206,2]
[393937083,1763112334439,5000.0,0.00025206,2]
[393937086,1763112342537,5000.0,0.00025206,2]
[393937087,1763112350500,5000.0,0.00025206,2]
[393937088,1763112372689,5000.0,0.00025206,2]
[393937089,1763112380470,5000.0,0.00025206,2]
[393937090,1763112388535,2185.23141805,0.00025206,2]
[393937091,1763112396360,5000.0,0.00025206,2]
[393937092,1763112404467,5000.0,0.00025206,2]
[393937093,1763112406823,150.0,0.0003288,120]
[393937095,1763112419662,5000.0,0.00025206,2]
[393937098,1763112427480,5000.0,0.00025206,2]
[393937099,1763112443939,5000.0,0.00025206,2]
[393937100,1763112451759,5000.0,0.00025206,2]
[393937101,1763112459878,-150.0,0.00025252,2]
[393937102,1763112459908,-2573.2533323,0.00025259,2]
[393937103,1763112459936,-800.0,0.000253,2]
[393937104,1763112459966,-300.0,0.00025348,2]
[393937105,1763112459986,-150.0,0.00025349,10]
[393937106,1763112459999,-2411.21,0.00025349,10]
[393937107,1763112460009,-162.0433323,0.00025349,10]
[393937108,1763112460021,-800.0,0.00025349,10]
[393937109,1763112460212,-300.0,0.00025349,10]
[393937110,1763112460224,-872.3066677,0.00025349,10]